fUSD/lending_fUSD_20260625
["ID","MTS","AMOUNT","RATE_DAILY","PERIOD"]
[426437541,1782388241000,-601.64901978,0.00026382,2]
[426437554,1782388241000,-151.0,0.000268,2]
[426437559,1782388241000,-151.0,0.000268,2]
[426437562,1782388241000,-171.762901,0.000268,2]
[426437557,1782388241000,-151.0,0.000268,2]
[426437556,1782388241000,-177.708708,0.000268,2]
[426437553,1782388241000,-151.0,0.000268,2]
[426437560,1782388241000,-171.762901,0.000268,2]
[426437561,1782388241000,-171.762901,0.000268,2]
[426437564,1782388241000,-151.0,0.000268,2]
[426437558,1782388241000,-151.0,0.000268,2]
[426437566,1782388241000,-199.620293,0.000268,2]
[426437568,1782388241000,-199.620293,0.000268,2]
[426437565,1782388241000,-151.0,0.000268,2]
[426437512,1782388241000,-441.75228855,0.00026382,2]
[426437555,1782388241000,-151.0,0.000268,2]
[426437534,1782388241000,-709.71005667,0.00026382,2]
[426437563,1782388241000,-171.762901,0.000268,2]
[426437539,1782388241000,-392.64037979,0.00026382,2]
[426437528,1782388241000,-473.47452134,0.00026382,2]
[426437513,1782388241000,-310.91461457,0.00026382,2]
[426437508,1782388241000,-285.92525505,0.00026382,2]
[426437503,1782388241000,-483.64801,0.00026382,2]
[426437507,1782388241000,-715.07857196,0.00026382,2]
[426437509,1782388241000,-297.17646819,0.00026382,2]
[426437525,1782388241000,-163.86654028,0.00026382,2]
[426437515,1782388241000,-259.00349276,0.00026382,2]
[426437526,1782388241000,-515.56407804,0.00026382,2]
[426437514,1782388241000,-365.43526887,0.00026382,2]
[426437516,1782388241000,-451.31812663,0.00026382,2]
[426437524,1782388241000,-265.41337865,0.00026382,2]
[426437521,1782388241000,-185.09018159,0.00026382,2]
[426437518,1782388241000,-618.60860317,0.00026382,2]
[426437511,1782388241000,-677.43445649,0.00026382,2]
[426437517,1782388241000,-394.21048024,0.00026382,2]
[426437533,1782388241000,-281.21387189,0.00026382,2]
[426437519,1782388241000,-325.72128767,0.00026382,2]
[426437538,1782388241000,-402.15966792,0.00026382,2]
[426437530,1782388241000,-572.20122894,0.00026382,2]
[426437529,1782388241000,-333.58090939,0.00026382,2]
[426437535,1782388241000,-463.12569333,0.00026382,2]
[426437537,1782388241000,-434.65303181,0.00026382,2]
[426437532,1782388241000,-355.06228705,0.00026382,2]
[426437531,1782388241000,-400.56304747,0.00026382,2]
[426437527,1782388241000,-371.08699381,0.00026382,2]
[426437523,1782388241000,-406.06075245,0.00026382,2]
[426437520,1782388241000,-352.79304983,0.00026382,2]
[426437522,1782388241000,-633.16886441,0.00026382,2]
[426437536,1782388241000,-363.42995112,0.00026382,2]
[426437593,1782388242000,-919.98097676,0.00026928,2]
[426437596,1782388242000,-795.05132739,0.00026942,2]
[426437605,1782388242000,-150.0,0.00027049,7]
[426437592,1782388242000,-853.09846238,0.00026928,2]
[426437594,1782388242000,-913.35299013,0.00026928,2]
[426437597,1782388242000,-846.79307061,0.00026942,2]
[426437599,1782388242000,-980.24334172,0.00026942,2]
[426437598,1782388242000,-923.25474397,0.00026942,2]
[426437601,1782388242000,-69079.80453034,0.00027,7]
[426437602,1782388242000,-150.0,0.00027049,7]
[426437607,1782388242000,-150.0,0.00027049,7]
[426437603,1782388242000,-150.0,0.00027049,7]
[426437613,1782388242000,-1500.0,0.00027397,2]
[426437608,1782388242000,-150.0,0.00027049,7]
[426437604,1782388242000,-150.0,0.00027049,7]
[426437606,1782388242000,-150.0,0.00027049,7]
[426437610,1782388242000,-353.33702037,0.00027116,2]
[426437611,1782388242000,-180.616,0.00027348,16]
[426437595,1782388242000,-826.98477464,0.00026928,2]
[426437609,1782388242000,-2000.0,0.000271,2]
[426437612,1782388242000,-1552.734,0.00027397,16]
[426437591,1782388242000,-892.34967038,0.00026928,2]
[426437588,1782388242000,-151.0,0.000268,2]
[426437589,1782388242000,-1200.0,0.000269,9]
[426437614,1782388242000,-2096.754905,0.00027397,2]
[426437576,1782388242000,-151.0,0.000268,2]
[426437569,1782388242000,-199.620293,0.000268,2]
[426437573,1782388242000,-151.0,0.000268,2]
[426437572,1782388242000,-151.0,0.000268,2]
[426437570,1782388242000,-151.0,0.000268,2]
[426437574,1782388242000,-167.614188,0.000268,2]
[426437571,1782388242000,-151.0,0.000268,2]
[426437575,1782388242000,-151.0,0.000268,2]
[426437577,1782388242000,-151.0,0.000268,2]
[426437578,1782388242000,-151.0,0.000268,2]
[426437579,1782388242000,-203.297254,0.000268,2]
[426437580,1782388242000,-203.297254,0.000268,2]
[426437584,1782388242000,-702.367819,0.000268,2]
[426437587,1782388242000,-153.918493,0.000268,2]
[426437585,1782388242000,-702.367819,0.000268,2]
[426437582,1782388242000,-203.297254,0.000268,2]
[426437586,1782388242000,-702.367819,0.000268,2]
[426437583,1782388242000,-702.367819,0.000268,2]
[426437581,1782388242000,-203.297254,0.000268,2]
[426437590,1782388242000,-844.80282869,0.00026928,2]
[426437600,1782388242000,-852.05855154,0.00026942,2]
[426437615,1782388242000,-2096.754905,0.00027397,2]
[426437621,1782388242000,-2096.754905,0.00027397,2]
[426437625,1782388242000,-634.59687,0.00027397,2]
[426437647,1782388242000,-151.0,0.00027397,2]
[426437640,1782388242000,-776.163355,0.00027397,2]
[426437645,1782388242000,-776.163355,0.00027397,2]
[426437644,1782388242000,-776.163355,0.00027397,2]
[426437646,1782388242000,-151.0,0.00027397,2]
[426437650,1782388242000,-13233.24,0.00027397,10]
[426437651,1782388242000,-6572.1175694,0.00027397,10]
[426437649,1782388242000,-300.0,0.00027397,2]
[426437652,1782388242000,-2166.69787519,0.00027397,10]
[426437643,1782388242000,-776.163355,0.00027397,2]
[426437654,1782388242000,-681.26014745,0.00027397,10]
[426437658,1782388242000,-361.28452361,0.00027397,2]
[426437661,1782388242000,-722.56904721,0.00027397,2]
[426437653,1782388242000,-680.50293505,0.00027397,10]
[426437655,1782388242000,-4973.34147291,0.00027397,10]
[426437659,1782388242000,-541.92678541,0.00027397,2]
[426437662,1782388242000,-212.30117333,0.00027397,2]
[426437664,1782388242000,-154.19,0.000274,7]
[426437663,1782388242000,-424.60234665,0.00027397,2]
[426437616,1782388242000,-2096.754905,0.00027397,2]
[426437657,1782388242000,-180.6422618,0.00027397,2]
[426437642,1782388242000,-776.163355,0.00027397,2]
[426437656,1782388242000,-296.39134668,0.00027397,2]
[426437639,1782388242000,-776.163355,0.00027397,2]
[426437618,1782388242000,-2096.754905,0.00027397,2]
[426437641,1782388242000,-776.163355,0.00027397,2]
[426437617,1782388242000,-2096.754905,0.00027397,2]
[426437624,1782388242000,-634.59687,0.00027397,2]
[426437620,1782388242000,-2096.754905,0.00027397,2]
[426437622,1782388242000,-634.59687,0.00027397,2]
[426437623,1782388242000,-634.59687,0.00027397,2]
[426437635,1782388242000,-486.974421,0.00027397,2]
[426437627,1782388242000,-634.59687,0.00027397,2]
[426437629,1782388242000,-634.59687,0.00027397,2]
[426437619,1782388242000,-2096.754905,0.00027397,2]
[426437631,1782388242000,-486.974421,0.00027397,2]
[426437626,1782388242000,-634.59687,0.00027397,2]
[426437628,1782388242000,-634.59687,0.00027397,2]
[426437636,1782388242000,-486.974421,0.00027397,2]
[426437630,1782388242000,-486.974421,0.00027397,2]
[426437634,1782388242000,-486.974421,0.00027397,2]
[426437633,1782388242000,-486.974421,0.00027397,2]
[426437638,1782388242000,-776.163355,0.00027397,2]
[426437632,1782388242000,-486.974421,0.00027397,2]
[426437637,1782388242000,-486.974421,0.00027397,2]
[426437648,1782388242000,-152.885403,0.00027397,2]
[426437695,1782388243000,-395.30298578,0.00028153,2]
[426437711,1782388243000,-155.554573,0.00024658,2]
[426437708,1782388243000,-296.78640012,0.00028507,2]
[426437709,1782388243000,-1083.85357082,0.00028798,2]
[426437706,1782388243000,-150.16131994,0.0002849,2]
[426437697,1782388243000,-500.0,0.00028154,2]
[426437705,1782388243000,-445.683038,0.00028356,7]
[426437699,1782388243000,-211.78441285,0.00028154,2]
[426437701,1782388243000,-192.85425077,0.00028155,2]
[426437707,1782388243000,-275.21359988,0.00028507,2]
[426437704,1782388243000,-237.07370031,0.00028279,2]
[426437710,1782388243000,-170.04316147,0.00029,7]
[426437722,1782388243000,-1157.7786845,0.00029028,2]
[426437714,1782388243000,-54.96004858,0.00029027,2]
[426437717,1782388243000,-44.29738911,0.00029027,2]
[426437715,1782388243000,-265.16908496,0.00027397,2]
[426437713,1782388243000,-544.55,0.00029,7]
[426437716,1782388243000,-574.57016804,0.00027397,2]
[426437719,1782388243000,-1249.28953853,0.00029028,2]
[426437735,1782388243000,-634.59687,0.0002912,7]
[426437720,1782388243000,-1194.33784733,0.00029028,2]
[426437721,1782388243000,-1278.69418618,0.00029028,2]
[426437724,1782388243000,-1227.65278494,0.00029043,2]
[426437700,1782388243000,-499.00644497,0.00028155,2]
[426437712,1782388243000,-329.95683853,0.00029,7]
[426437693,1782388243000,-903.21130901,0.00027957,2]
[426437667,1782388243000,-500.0,0.000275,7]
[426437694,1782388243000,-600.0,0.00028,2]
[426437674,1782388243000,-1070.81960446,0.00027768,2]
[426437670,1782388243000,-353.33702037,0.00027664,2]
[426437665,1782388243000,-179.22,0.000274,7]
[426437666,1782388243000,-150.0,0.00027458,2]
[426437672,1782388243000,-1013.76339443,0.00027768,2]
[426437678,1782388243000,-1103.97717211,0.00027768,2]
[426437679,1782388243000,-1096.02358815,0.00027768,2]
[426437676,1782388243000,-1023.71815485,0.00027768,2]
[426437681,1782388243000,-1052.27381566,0.00027782,2]
[426437680,1782388243000,-992.38172957,0.00027768,2]
[426437684,1782388243000,-1176.29201007,0.00027782,2]
[426437698,1782388243000,-500.0,0.00028154,2]
[426437682,1782388243000,-1016.15168473,0.00027782,2]
[426437683,1782388243000,-1107.90569277,0.00027782,2]
[426437687,1782388243000,-3562.0,0.0002787,2]
[426437688,1782388243000,-1230.0,0.0002787,2]
[426437686,1782388243000,-944.87,0.00027849,7]
[426437690,1782388243000,-1277.0,0.0002787,2]
[426437689,1782388243000,-1361.0,0.0002787,2]
[426437692,1782388243000,-935.0,0.0002787,2]
[426437702,1782388243000,-353.33702046,0.00028212,2]
[426437703,1782388243000,-1123.55,0.00028279,7]
[426437691,1782388243000,-216.0,0.0002787,2]
[426437696,1782388243000,-150.0,0.00028153,2]
[426437685,1782388243000,-1022.47026185,0.00027782,2]
[426437734,1782388243000,-2096.754905,0.0002912,7]
[426437718,1782388243000,-472.74256231,0.00029027,2]
[426437727,1782388243000,-151.0,0.0002912,7]
[426437755,1782388243000,-151.0,0.0002912,7]
[426437754,1782388243000,-151.0,0.0002912,7]
[426437751,1782388243000,-199.620293,0.0002912,7]
[426437756,1782388243000,-151.0,0.0002912,7]
[426437761,1782388243000,-154.8964,0.0002912,7]
[426437762,1782388243000,-151.000009,0.0002912,7]
[426437772,1782388243000,-282.43009304,0.0002912,7]
[426437763,1782388243000,-151.0,0.0002912,7]
[426437764,1782388243000,-151.0,0.0002912,7]
[426437765,1782388243000,-151.0,0.0002912,7]
[426437770,1782388243000,-203.297254,0.0002912,7]
[426437771,1782388243000,-702.367819,0.0002912,7]
[426437767,1782388243000,-203.297254,0.0002912,7]
[426437768,1782388243000,-203.297254,0.0002912,7]
[426437766,1782388243000,-282.093928,0.0002912,7]
[426437769,1782388243000,-203.297254,0.0002912,7]
[426437777,1782388243000,-151.0,0.0002912,7]
[426437776,1782388243000,-702.367819,0.0002912,7]
[426437775,1782388243000,-274.97288021,0.0002912,7]
[426437773,1782388243000,-419.93772596,0.0002912,7]
[426437779,1782388243000,-11251.0,0.0002912,20]
[426437780,1782388243000,-839.739253,0.00027397,2]
[426437778,1782388243000,-46446.7367611,0.0002912,20]
[426437781,1782388243000,-1267.98132636,0.0002912,20]
[426437733,1782388243000,-2096.754905,0.0002912,7]
[426437760,1782388243000,-776.163355,0.0002912,7]
[426437752,1782388243000,-199.620293,0.0002912,7]
[426437774,1782388243000,-427.39493879,0.0002912,7]
[426437749,1782388243000,-151.0,0.0002912,7]
[426437753,1782388243000,-199.620293,0.0002912,7]
[426437726,1782388243000,-151.0,0.0002912,7]
[426437728,1782388243000,-151.0,0.0002912,7]
[426437725,1782388243000,-158.04132,0.0002912,7]
[426437730,1782388243000,-246.066584,0.0002912,7]
[426437729,1782388243000,-151.0,0.0002912,7]
[426437732,1782388243000,-2096.754905,0.0002912,7]
[426437731,1782388243000,-2096.754905,0.0002912,7]
[426437736,1782388243000,-634.59687,0.0002912,7]
[426437740,1782388243000,-171.762901,0.0002912,7]
[426437739,1782388243000,-634.59687,0.0002912,7]
[426437738,1782388243000,-634.59687,0.0002912,7]
[426437723,1782388243000,-230.72478603,0.00029041,2]
[426437744,1782388243000,-486.974421,0.0002912,7]
[426437757,1782388243000,-776.163355,0.0002912,7]
[426437758,1782388243000,-776.163355,0.0002912,7]
[426437737,1782388243000,-151.0,0.0002912,7]
[426437750,1782388243000,-199.620293,0.0002912,7]
[426437747,1782388243000,-486.974421,0.0002912,7]
[426437748,1782388243000,-151.0,0.0002912,7]
[426437759,1782388243000,-776.163355,0.0002912,7]
[426437743,1782388243000,-171.762901,0.0002912,7]
[426437742,1782388243000,-171.762901,0.0002912,7]
[426437745,1782388243000,-486.974421,0.0002912,7]
[426437746,1782388243000,-486.974421,0.0002912,7]
[426437741,1782388243000,-171.762901,0.0002912,7]
[426437800,1782388246000,-443.97,0.00017104,2]
[426437799,1782388246000,-1218.079,0.00017104,2]
[426437805,1782388247000,-839.739253,0.00027397,2]
[426437801,1782388247000,-1731.00474453,0.00017104,2]
[426437803,1782388247000,-839.739253,0.00027397,2]
[426437802,1782388247000,-199.52,0.00024658,2]
[426437804,1782388247000,-839.739253,0.00027397,2]
[426437809,1782388247000,-839.739253,0.00027397,2]
[426437807,1782388247000,-839.739253,0.00027397,2]
[426437806,1782388247000,-839.739253,0.00027397,2]
[426437810,1782388247000,-839.739253,0.00027397,2]
[426437813,1782388247000,-1978.23509262,0.0002911,10]
[426437812,1782388247000,-800.2,0.0002911,10]
[426437811,1782388247000,-1169.95091784,0.0002911,10]
[426437808,1782388247000,-839.739253,0.00027397,2]
[426437830,1782388316000,167.54,0.00030561,30]
[426437831,1782388317000,150.77,0.00028082,30]
[426437838,1782389316000,500.0,0.0002912,30]
[426437837,1782389316000,500.0,0.0002912,30]
[426437839,1782389323000,744.0,0.00031507,30]
[426437858,1782389432000,-150.0,0.00012898,2]
[426437856,1782389432000,-166.66,0.00012883,2]
[426437853,1782389432000,-2132.90873692,0.000128,4]
[426437851,1782389432000,-454.7,0.00012776,2]
[426437848,1782389432000,-378.1,0.00012668,2]
[426437852,1782389432000,-267.09126308,0.000128,4]
[426437860,1782389432000,-66.16183546,0.00012898,2]
[426437850,1782389432000,-1019.97558608,0.000127,4]
[426437846,1782389432000,-352.75,0.00012488,2]
[426437847,1782389432000,-166.66,0.00012633,2]
[426437845,1782389432000,-166.66,0.00012383,2]
[426437844,1782389432000,-157.94881969,0.00012133,2]
[426437842,1782389432000,-352.75,0.00012065,2]
[426437843,1782389432000,-8.71118031,0.00012133,2]
[426437841,1782389432000,-166.66,0.00011883,2]
[426437855,1782389432000,-1119.51394276,0.00012865,2]
[426437849,1782389432000,-180.02441392,0.000127,4]
[426437854,1782389432000,-1425.27636569,0.00012865,2]
[426437857,1782389432000,-166.42,0.00012893,2]
[426437861,1782389432000,-433.83816454,0.00012898,2]
[426437859,1782389432000,-500.0,0.00012898,2]
[426437880,1782389432000,-500.0,0.00012898,2]
[426437878,1782389432000,-326957.37032721,0.00012965,2]
[426437879,1782389432000,-812.72909944,0.00012965,2]
[426437875,1782389432000,-5615.4629,0.00012965,2]
[426437876,1782389432000,-7481.31917706,0.00012965,2]
[426437873,1782389432000,-3600.0,0.000129,4]
[426437874,1782389432000,-352.75,0.00012912,2]
[426437877,1782389432000,-500.0,0.00012898,2]
[426437872,1782389432000,-500.0,0.00012898,2]
[426437871,1782389432000,-500.0,0.00012898,2]
[426437866,1782389432000,-165.23254346,0.00012898,2]
[426437865,1782389432000,-500.0,0.00012898,2]
[426437863,1782389432000,-500.0,0.00012898,2]
[426437864,1782389432000,-500.0,0.00012898,2]
[426437881,1782389432000,-264.77933751,0.00012965,2]
[426437862,1782389432000,-500.0,0.00012898,2]
[426437868,1782389432000,-334.76745654,0.00012898,2]
[426437905,1782389438000,-152.0,0.00012965,2]
[426437896,1782389438000,-500.0,0.00012898,2]
[426437894,1782389438000,-500.0,0.00012898,2]
[426437898,1782389438000,-493.7424681,0.00012898,2]
[426437895,1782389438000,-500.0,0.00012898,2]
[426437893,1782389438000,-500.0,0.00012898,2]
[426437899,1782389438000,-500.0,0.00012898,2]
[426437900,1782389438000,-1164483.80205878,0.00012965,2]
[426437897,1782389438000,-500.0,0.00012898,2]
[426437892,1782389438000,-1123.03564115,0.00012865,2]
[426437904,1782389438000,-152.0,0.00012965,2]
[426437901,1782389438000,-152.0,0.00012965,2]
[426437912,1782389438000,-289.93430192,0.00012965,2]
[426437902,1782389438000,-289.93430192,0.00012965,2]
[426437906,1782389438000,-206.90145288,0.00012965,2]
[426437903,1782389438000,-152.0,0.00012965,2]
[426437919,1782389438000,-14135.32031454,0.00012965,2]
[426437918,1782389438000,-4030.04561283,0.00012965,2]
[426437916,1782389438000,-152.0,0.00012965,2]
[426437915,1782389438000,-152.0,0.00012965,2]
[426437914,1782389438000,-152.0,0.00012965,2]
[426437917,1782389438000,-295.73261565,0.00012965,2]
[426437908,1782389438000,-152.0,0.00012965,2]
[426437911,1782389438000,-152.0,0.00012965,2]
[426437910,1782389438000,-206.90145288,0.00012965,2]
[426437909,1782389438000,-152.0,0.00012965,2]
[426437907,1782389438000,-152.0,0.00012965,2]
[426437913,1782389438000,-152.0,0.00012965,2]
[426437960,1782389439000,-150.0,0.00013488,2]
[426437962,1782389439000,-150.0,0.00013488,2]
[426437963,1782389439000,-14135.32031453,0.0001363,2]
[426437957,1782389439000,-150.0,0.00013488,2]
[426437978,1782389439000,-500.0,0.00013698,2]
[426437959,1782389439000,-150.0,0.00013488,2]
[426437966,1782389439000,-587.65139559,0.00013698,2]
[426437956,1782389439000,-150.0,0.00013488,2]
[426437961,1782389439000,-150.0,0.00013488,2]
[426437958,1782389439000,-150.0,0.00013488,2]
[426437967,1782389439000,-500.0,0.00013698,2]
[426437971,1782389439000,-500.0,0.00013698,2]
[426437964,1782389439000,-4030.04561278,0.00013663,2]
[426437968,1782389439000,-500.0,0.00013698,2]
[426437969,1782389439000,-500.0,0.00013698,2]
[426437977,1782389439000,-500.0,0.00013698,2]
[426437970,1782389439000,-500.0,0.00013698,2]
[426437975,1782389439000,-500.0,0.00013698,2]
[426437974,1782389439000,-500.0,0.00013698,2]
[426437972,1782389439000,-500.0,0.00013698,2]
[426437973,1782389439000,-584.73237079,0.00013698,2]
[426437976,1782389439000,-500.0,0.00013698,2]
[426437955,1782389439000,-2544.79030839,0.00013463,2]
[426437965,1782389439000,-500.0,0.00013698,2]
[426437945,1782389439000,-166.66,0.00013133,2]
[426437926,1782389439000,-1552.734,0.00013,2]
[426437951,1782389439000,-2000.0,0.00013265,2]
[426437980,1782389439000,-500.0,0.00013698,2]
[426437921,1782389439000,-261.87092074,0.00012971,2]
[426437924,1782389439000,-10000.0,0.00013,2]
[426437922,1782389439000,-219.49438601,0.00013,2]
[426437920,1782389439000,-891.77172632,0.00012965,2]
[426437928,1782389439000,-180.616,0.00013,2]
[426437939,1782389439000,-303.99999996,0.00013,2]
[426437942,1782389439000,-996.49325095,0.00013064,3]
[426437938,1782389439000,-152.0,0.00013,2]
[426437940,1782389439000,-500.0,0.00013,2]
[426437941,1782389439000,-224.60734172,0.00013033,2]
[426437937,1782389439000,-152.0,0.00013,2]
[426437930,1782389439000,-152.0,0.00013,2]
[426437932,1782389439000,-152.0,0.00013,2]
[426437936,1782389439000,-152.0,0.00013,2]
[426437934,1782389439000,-152.0,0.00013,2]
[426437952,1782389439000,-352.75,0.00013335,2]
[426437943,1782389439000,-1500000.0,0.00013065,2]
[426437946,1782389439000,-2544.79030839,0.00013164,2]
[426437949,1782389439000,-4030.04561278,0.00013198,2]
[426437950,1782389439000,-24261.7042,0.00013265,2]
[426437953,1782389439000,-14135.32031453,0.00013408,2]
[426437948,1782389439000,-14135.32031453,0.00013187,2]
[426437954,1782389439000,-4030.04561278,0.0001343,2]
[426437944,1782389439000,-203.39689881,0.00013071,2]
[426437947,1782389439000,-216.45114417,0.00013181,2]
[426437979,1782389439000,-500.0,0.00013698,2]
[426438003,1782389439000,-14135.32031453,0.00014073,2]
[426437982,1782389439000,-500.0,0.00013698,2]
[426438011,1782389439000,-4030.04561278,0.00014594,2]
[426438012,1782389439000,-4800.0,0.000146,5]
[426438015,1782389439000,-14135.32031453,0.00014737,2]
[426438016,1782389439000,-1200.0,0.000148,5]
[426438021,1782389439000,-633.3,0.00014955,2]
[426438022,1782389439000,-14135.32031453,0.00014959,2]
[426438024,1782389439000,-2544.79030839,0.00014959,2]
[426438023,1782389439000,-891.77172631,0.00014959,2]
[426438014,1782389439000,-6100.0,0.000147,5]
[426438018,1782389439000,-3968.2949,0.000149,2]
[426438019,1782389439000,-1200.0,0.000149,5]
[426438008,1782389439000,-454.7,0.00014373,2]
[426438020,1782389439000,-224.60734172,0.000149,2]
[426438025,1782389439000,-500.0,0.00014999,2]
[426438027,1782389439000,-500.0,0.00014999,2]
[426438028,1782389439000,-500.0,0.00014999,2]
[426438031,1782389439000,-500.0,0.00014999,2]
[426438032,1782389439000,-500.0,0.00014999,2]
[426438035,1782389439000,-300.0,0.00014999,2]
[426438030,1782389439000,-500.0,0.00014999,2]
[426438034,1782389439000,-500.0,0.00014999,2]
[426438029,1782389439000,-500.0,0.00014999,2]
[426438033,1782389439000,-500.0,0.00014999,2]
[426438036,1782389439000,-7697028.4504366,0.00015,2]
[426438026,1782389439000,-500.0,0.00014999,2]
[426438010,1782389439000,-14135.32031453,0.00014516,2]
[426438017,1782389439000,-4030.04561278,0.00014826,2]
[426438009,1782389439000,-34436.25136767,0.000145,3]
[426437983,1782389439000,-500.0,0.00013698,2]
[426437984,1782389439000,-500.0,0.00013698,2]
[426438013,1782389439000,-2544.79030839,0.0001466,2]
[426437989,1782389439000,-500.0,0.00013698,2]
[426437985,1782389439000,-291.52007172,0.00013698,2]
[426437987,1782389439000,-500.0,0.00013698,2]
[426437986,1782389439000,-500.0,0.00013698,2]
[426437988,1782389439000,-500.0,0.00013698,2]
[426437991,1782389439000,-500.0,0.00013698,2]
[426437995,1782389439000,-2544.79030839,0.00013762,2]
[426437997,1782389439000,-14135.32031453,0.00013851,2]
[426437993,1782389439000,-500.0,0.00013698,2]
[426437990,1782389439000,-500.0,0.00013698,2]
[426437994,1782389439000,-200.0,0.00013699,2]
[426437998,1782389439000,-4030.04561278,0.00013896,2]
[426438006,1782389439000,-2544.79030839,0.00014361,2]
[426438007,1782389439000,-4030.04561278,0.00014361,2]
[426438005,1782389439000,-14135.32031453,0.00014294,2]
[426438004,1782389439000,-4030.04561278,0.00014128,2]
[426438002,1782389439000,-2544.79030839,0.00014062,2]
[426437981,1782389439000,-500.0,0.00013698,2]
[426438001,1782389439000,-255.0,0.00014007,2]
[426437999,1782389439000,-891.77172631,0.00013962,2]
[426438000,1782389439000,-250.0,0.00014,2]
[426437992,1782389439000,-500.0,0.00013698,2]
[426437996,1782389439000,-500.0,0.00013789,2]
[426438068,1782389443000,-536.43121923,0.00013883,2]
[426438066,1782389443000,-500.0,0.00013883,2]
[426438069,1782389443000,-261.87092072,0.00013936,2]
[426438070,1782389443000,-417.07394538,0.00015,2]
[426438067,1782389443000,-86.6044219,0.00013883,2]
[426438117,1782389446000,-2462.72687089,0.00015,2]
[426438116,1782389446000,-261.87092072,0.000149,2]
[426438118,1782389447000,-60906.58239716,0.00015,2]
[426438119,1782389447000,-2760.1158679,0.00015,2]
[426438124,1782389472000,163.9,0.00029931,30]
[426438125,1782389557000,272.82,0.00027934,120]
[426438127,1782389841000,-9000000.0,0.00037359,30]
[426438128,1782389849000,-9000000.0,0.00037359,30]
[426438129,1782389857000,-9000000.0,0.000373,30]
[426438130,1782389874000,-9000000.0,0.000373,30]
[426438131,1782389877000,-9000000.0,0.000373,30]
[426438132,1782389884000,-9000000.0,0.000373,30]
[426438133,1782389887000,-9000000.0,0.000373,30]
[426438134,1782389890000,-9000000.0,0.000373,30]
[426438136,1782389984000,-1458.6298055,0.000373,120]
[426438135,1782389984000,-5993554.85029913,0.000373,30]
[426438138,1782389984000,-4538.71938757,0.000373,30]
[426438140,1782389984000,-2997431.62683287,0.000373,30]
[426438139,1782389984000,-958.19397393,0.000373,30]
[426438137,1782389984000,-2057.979701,0.000373,30]
[426438141,1782390031000,-858056.52223674,0.000373,30]
[426438142,1782390031000,-1981.54649479,0.000373,30]
[426438143,1782390031000,-4881.86816962,0.000373,30]
[426438145,1782390031000,-272119.52980604,0.000373,30]
[426438146,1782390031000,-102226.62375925,0.000373,30]
[426438147,1782390031000,-1516.72,0.000373,30]
[426438148,1782390031000,-1516.72,0.000373,30]
[426438149,1782390031000,-1516.72,0.000373,30]
[426438150,1782390031000,-1516.72,0.000373,30]
[426438151,1782390031000,-1516.72,0.000373,30]
[426438144,1782390031000,-3260.49762717,0.000373,120]
[426438152,1782390031000,-1516.72,0.000373,30]
[426438153,1782390031000,-1516.72,0.000373,30]
[426438162,1782390031000,-1516.72,0.000373,30]
[426438161,1782390031000,-1516.72,0.000373,30]
[426438158,1782390031000,-1516.72,0.000373,30]
[426438160,1782390031000,-1516.72,0.000373,30]
[426438156,1782390031000,-1516.72,0.000373,30]
[426438157,1782390031000,-1516.72,0.000373,30]
[426438155,1782390031000,-1516.72,0.000373,30]
[426438154,1782390031000,-1516.72,0.000373,30]
[426438159,1782390031000,-1516.72,0.000373,30]
[426438177,1782390032000,-2113.6,0.000373,120]
[426438172,1782390032000,-500.0,0.000373,120]